bitfinex/quotes_SOLUSD_20250912
["timestamp","ask_amount","ask_price","bid_price","bid_amount"]
[1757694073379,32.42,238.44,238.43,0.71]
[1757694073581,32.42,238.44,238.41,0.1]
[1757694073582,39.32875334,238.44,238.41,0.1]
[1757694073884,4.13384123,238.42,238.41,0.1]
[1757694074063,36.55384123,238.42,238.41,0.1]
[1757694074268,39.32875334,238.42,238.41,0.1]
[1757694074483,40.01875334,238.42,238.41,0.1]
[1757694074667,53.61434735,238.42,238.41,0.1]
[1757694075060,28.77491211,238.42,238.41,0.1]
[1757694075355,65.38919111,238.42,238.41,0.1]
[1757694075559,69.52303234,238.42,238.41,0.1]
[1757694075780,37.10303234,238.42,238.41,0.1]
[1757694076086,69.52303234,238.42,238.41,0.1]
[1757694077874,87.29646095,238.42,238.41,1e-08]
[1757694078075,26.0,238.38,238.31,0.81]
[1757694078277,65.34875334,238.37,238.31,0.81]
[1757694078479,35.21491211,238.36,238.31,5.00614307]
[1757694078782,21.92371424,238.42,238.41,0.03]
[1757694078984,24.68816795,238.42,238.41,0.03]
[1757694079283,39.41873271,238.42,238.41,0.03]
[1757694080065,40.10873271,238.42,238.41,0.03]
[1757694080479,64.19002422,238.42,238.38,0.03]
[1757694080687,4.13384123,238.4,238.38,0.03]
[1757694080884,35.24445371,238.39,238.38,0.03]
[1757694081473,39.43926053,238.39,238.38,0.03]
[1757694082265,6.95926053,238.39,238.38,0.03]
[1757694082578,65.43926053,238.39,238.38,0.74]
[1757694082778,61.24445371,238.39,238.38,0.74]
[1757694083167,35.22445371,238.39,238.38,0.74]
[1757694083475,39.41926053,238.39,238.38,0.74]
[1757694083675,39.41926053,238.39,238.38,0.03]
[1757694084683,39.41926053,238.39,238.38,0.74]
[1757694085689,35.22445371,238.39,238.38,0.74]
[1757694086766,2.76445371,238.39,238.38,0.74]
[1757694086971,2.76445371,238.39,238.38,4.9349828]
[1757694087273,2.76445371,238.39,238.38,0.74]
[1757694089307,2.76445371,238.39,238.38,0.03]
[1757694089472,25.34869577,238.39,238.38,0.03]
[1757694089679,13.59559401,238.37,238.36,0.03]
[1757694089979,52.97388895,238.37,238.36,0.03]
[1757694090590,40.05829494,238.37,238.36,0.03]
[1757694090996,39.39829494,238.37,238.36,0.03]
[1757694091171,37.09345372,238.37,238.36,0.03]
[1757694091495,44.25345372,238.37,238.36,0.03]
[1757694092067,11.09345372,238.37,238.36,0.03]
[1757694092272,37.09345372,238.37,238.36,0.03]
[1757694092574,68.92065154,238.37,238.36,0.03]
[1757694092979,65.45961249,238.37,238.36,0.03]
[1757694093186,68.92065154,238.37,238.36,0.03]
[1757694094305,32.95961249,238.37,238.36,0.03]
[1757694094508,65.43961249,238.37,238.32,0.71]
[1757694094808,6.22970185,238.36,238.33,0.71]
[1757694094987,2.76445371,238.35,238.34,0.71]
[1757694095190,38.70970185,238.35,238.34,0.71]
[1757694095388,42.90521265,238.35,238.34,0.71]
[1757694096208,39.43996451,238.35,238.34,0.71]
[1757694096508,13.59559401,238.34,238.31,0.1]
[1757694096685,4.13384123,238.32,238.31,0.1]
[1757694097002,6.89829494,238.32,238.31,0.1]
[1757694097186,21.15388895,238.32,238.31,1e-08]
[1757694098604,29.48376911,238.32,238.31,0.03000001]
[1757694099309,36.51879798,238.32,238.31,0.03000001]
[1757694099711,26.0,238.29,238.22,0.71]
[1757694099892,3.47596168,238.26,238.23,0.71]
[1757694100204,2.76445371,238.25,238.23,0.71]
[1757694100386,2.76445371,238.24,238.23,0.71]
[1757694102911,2.78401885,238.29,238.28,0.71]
[1757694107609,2.78401885,238.29,238.28,4.90674332]
[1757694108499,2.78401885,238.29,238.28,30.90674332]
[1757694108703,2.78401885,238.29,238.28,44.50233733]
[1757694109320,2.78401885,238.35,238.28,44.50233733]
[1757694109498,2.78401885,238.36,238.29,0.66]
[1757694109701,2.78401885,238.35,238.29,0.66]
[1757694110018,2.78401885,238.37,238.29,0.66]
[1757694110214,2.78401885,238.36,238.29,0.66]
[1757694110411,2.78401885,238.35,238.29,0.66]
[1757694110604,4.19498636,238.38,238.3,4.1963911]
[1757694110802,2.80865884,238.37,238.31,0.66]
[1757694111005,26.0,238.41,238.31,0.66]
[1757694111204,2.80830408,238.4,238.31,0.66]
[1757694111516,2.80830408,238.4,238.32,13.59559401]
[1757694111717,2.80830408,238.41,238.33,0.66]
[1757694112018,2.80830408,238.4,238.33,0.66]
[1757694112225,0.06,238.42,238.33,0.66]
[1757694112226,2.80830408,238.41,238.33,0.66]
[1757694112397,2.80830408,238.4,238.33,0.66]
[1757694112703,2.80830408,238.41,238.34,4.19568683]
[1757694112904,0.53765704,238.41,238.35,0.66]
[1757694113306,0.06,238.42,238.35,0.66]
[1757694113706,4.25429082,238.42,238.35,0.66]
[1757694114508,4.25429082,238.42,238.35,84.45537289]
[1757694118224,0.06,238.41,238.39,0.71]
[1757694118400,0.06,238.41,238.4,4.19463087]
[1757694118602,0.06,238.41,238.4,83.79463087]
[1757694118917,0.06,238.41,238.4,51.41968796]
[1757694122210,0.06,238.41,238.4,51.39968796]
[1757694122415,0.06,238.41,238.4,50.98022488]
[1757694123121,0.06,238.41,238.4,52.65769023]
[1757694123702,0.06,238.41,238.4,50.98022488]
[1757694124303,0.06,238.41,238.4,130.58022488]
[1757694124530,0.06,238.44,238.43,43.7896971]
[1757694124743,0.06,238.46,238.43,43.7896971]
[1757694124744,4.19218404,238.54,238.46,79.42]
[1757694124906,0.71,238.53,238.46,111.88]
[1757694125105,4.19164963,238.57,238.46,126.18559401]
[1757694125335,0.71,238.55,238.46,126.18559401]
[1757694126510,0.71,238.55,238.46,130.37916945]
[1757694126928,0.1,238.59,238.46,130.37916945]
[1757694127130,0.71,238.58,238.46,130.37916945]
[1757694127816,0.71,238.57,238.46,130.37916945]
[1757694128021,0.71,238.57,238.46,97.91916945]
[1757694128228,0.71,238.57,238.46,130.37916945]
[1757694129035,0.71,238.57,238.47,13.59559401]
[1757694129234,0.71,238.57,238.48,32.44]
[1757694129543,0.1,238.59,238.52,39.59559401]
[1757694129740,0.1,238.59,238.53,32.44]
[1757694129917,0.1,238.59,238.54,13.59559401]
[1757694130115,0.1,238.59,238.55,32.46]
[1757694130421,0.1,238.59,238.55,33.17]
[1757694130622,0.1,238.59,238.56,4.19181757]
[1757694130823,0.1,238.59,238.57,32.46]
[1757694131131,0.1,238.59,238.58,13.59559401]
[1757694131333,0.1,238.59,238.58,14.30559401]
[1757694131743,0.1,238.59,238.58,93.72559401]
[1757694132355,0.81,238.69,238.62,13.59559401]
[1757694132517,0.81,238.69,238.63,32.48]
[1757694132725,0.81,238.69,238.64,4.19041233]
[1757694133242,0.71,238.68,238.65,32.46]
[1757694133935,0.71,238.68,238.62,18.49621124]
[1757694134121,0.71,238.67,238.61,105.42]
[1757694134323,0.71,238.66,238.62,32.48]
[1757694134527,0.1,238.69,238.62,32.48]
[1757694134727,0.71,238.68,238.62,4.19070212]
[1757694134947,0.71,238.68,238.63,32.46]
[1757694135245,0.71,238.67,238.63,32.46]
[1757694135438,0.71,238.66,238.63,32.46]
[1757694135616,0.71,238.68,238.63,32.46]
[1757694135818,0.71,238.67,238.63,32.46]
[1757694136014,0.71,238.66,238.61,105.42]
[1757694136234,0.06,238.64,238.62,32.48]
[1757694137350,0.06,238.64,238.62,79.42]
[1757694137633,0.06,238.64,238.62,111.9]
[1757694137634,0.77,238.64,238.62,111.9]
[1757694137838,0.77,238.64,238.62,79.42]
[1757694138018,0.71,238.63,238.61,32.48]
[1757694138222,0.71,238.63,238.6,26.0]
[1757694138538,0.71,238.62,238.57,79.42]
[1757694138720,0.71,238.61,238.5,4.19277409]
[1757694139040,0.71,238.6,238.51,46.07559401]
[1757694139246,0.71,238.59,238.51,46.07559401]
[1757694139430,0.71,238.58,238.51,50.26823023]
[1757694139768,0.71,238.57,238.46,0.71]
[1757694139921,4.19129414,238.59,238.47,32.5]
[1757694140239,4.19129414,238.59,238.49,13.59559401]
[1757694140240,30.90129414,238.59,238.49,13.59559401]
[1757694140438,30.90129414,238.59,238.5,33.21]
[1757694140615,30.90129414,238.59,238.5,0.71]
[1757694140823,0.71,238.59,238.51,32.5]
[1757694141022,0.71,238.61,238.52,0.71]
[1757694141544,0.71,238.61,238.53,4.19234477]
[1757694141719,0.71,238.6,238.54,32.52]
[1757694142344,4.25053109,238.64,238.54,33.23]
[1757694142526,4.96053109,238.64,238.55,0.71]
[1757694142845,4.96053109,238.64,238.56,32.52]
[1757694143031,0.77,238.64,238.56,32.52]
[1757694143233,0.06,238.64,238.57,0.71]
[1757694143442,0.06,238.64,238.58,4.19146617]
[1757694143824,0.06,238.64,238.59,33.24]
[1757694144357,0.06,238.64,238.6,0.72]
[1757694144652,0.06,238.64,238.61,46.85559401]
[1757694145149,0.06,238.64,238.62,0.72]
[1757694145647,0.06,238.64,238.63,0.72]
[1757694146320,0.06,238.64,238.63,14.31559401]
[1757694147948,0.06,238.64,238.63,18.50618194]
[1757694148735,0.1,238.69,238.67,13.59559401]
[1757694149049,0.1,238.69,238.68,32.52]
[1757694149228,0.1,238.69,238.68,33.24]
[1757694149630,0.1,238.69,238.68,37.42971007]
[1757694149848,0.1,238.69,238.68,51.02530408]
[1757694151425,0.1,238.69,238.68,51.44427508]
[1757694151622,0.1,238.69,238.68,51.02530408]
[1757694152750,0.1,238.69,238.68,18.50530408]
[1757694152950,0.1,238.69,238.68,51.00530408]
[1757694154332,0.1,238.69,238.68,63.6668709]
[1757694154531,0.16,238.69,238.68,31.1668709]
[1757694154851,0.06,238.73,238.72,13.59559401]
[1757694156044,0.06,238.73,238.71,26.0]
[1757694156659,0.72,238.73,238.72,32.48]
[1757694156853,0.06,238.73,238.72,32.48]
[1757694157046,0.06,238.73,238.72,36.66900804]
[1757694157452,0.06,238.73,238.72,32.48]
[1757694157643,0.06,238.73,238.71,26.0]
[1757694157837,0.72,238.73,238.72,32.46]
[1757694158042,0.06,238.73,238.72,32.46]
[1757694158445,40.0,238.72,238.69,4.18952141]
[1757694159043,40.0,238.72,238.7,32.46]
[1757694159440,40.0,238.72,238.7,33.18]
[1757694159644,40.0,238.72,238.7,32.46]
[1757694160155,40.0,238.72,238.7,33.18]
[1757694160574,40.0,238.72,238.7,32.46]
[1757694160761,40.0,238.72,238.71,4.90918352]
[1757694161862,40.0,238.72,238.71,4.18918352]
[1757694162178,40.0,238.72,238.71,18.50477753]
[1757694162352,40.0,238.72,238.71,76.24477753]
[1757694162545,40.0,238.72,238.71,43.78477753]
[1757694162746,40.0,238.72,238.71,76.96477753]
[1757694162956,40.0,238.72,238.71,50.96477753]
[1757694165163,40.0,238.72,238.71,50.24477753]
[1757694165664,40.0,238.72,238.71,50.22477753]
[1757694165841,40.0,238.72,238.71,30.18918352]
[1757694166047,40.0,238.72,238.71,76.93477753]
[1757694166449,40.0,238.72,238.71,76.22477753]
[1757694167168,40.0,238.72,238.67,4.18984847]
[1757694167358,40.0,238.72,238.68,46.07559401]
[1757694167565,40.0,238.72,238.69,0.71]
[1757694167753,40.0,238.72,238.7,32.48]
[1757694167956,40.0,238.72,238.71,32.52]
[1757694168661,40.0,238.72,238.68,40.30559401]
[1757694168972,0.66,238.71,238.69,32.5]
[1757694169152,40.0,238.72,238.7,32.52]
[1757694170151,40.0,238.72,238.71,14.30559401]
[1757694170982,40.0,238.72,238.71,17.78477753]
[1757694171148,40.0,238.72,238.71,50.30477753]
[1757694171549,40.0,238.72,238.71,51.01477753]
[1757694173249,40.0,238.72,238.71,17.78477753]
[1757694173474,40.0,238.72,238.71,50.32477753]
[1757694174367,40.06,238.72,238.71,50.32477753]
[1757694174572,40.06,238.72,238.71,51.02477753]
[1757694175371,40.06,238.72,238.71,50.32477753]
[1757694175769,40.06,238.72,238.71,51.02477753]
[1757694175960,40.06,238.72,238.71,51.00477753]
[1757694176164,40.06,238.72,238.71,50.30477753]
[1757694176457,40.06,238.72,238.71,17.78477753]
[1757694176671,40.06,238.72,238.71,50.30477753]
[1757694177173,40.06,238.72,238.71,17.78477753]
[1757694177350,40.06,238.72,238.71,50.30477753]
[1757694177558,40.06,238.72,238.71,17.78477753]
[1757694177760,40.06,238.72,238.71,50.28477753]
[1757694178774,40.74,238.72,238.71,32.5]
[1757694179777,40.74,238.72,238.69,0.03]
[1757694179978,40.74,238.72,238.69,4.21951242]
[1757694180166,0.68,238.71,238.7,32.5]
[1757694181073,0.68,238.71,238.7,36.68935902]
[1757694181458,40.06,238.72,238.7,36.68935902]
[1757694183061,0.68,238.71,238.69,0.03]
[1757694183582,0.68,238.7,238.69,0.03]
[1757694183775,40.06,238.72,238.69,4.21950887]
[1757694183980,0.68,238.71,238.7,32.54]
[1757694184472,40.06,238.72,238.7,32.54]
[1757694184852,0.68,238.71,238.7,32.54]
[1757694185063,0.68,238.71,238.7,36.72935902]
[1757694185266,40.06,238.72,238.7,36.72935902]
[1757694185764,40.74,238.72,238.69,0.03]
[1757694185962,0.68,238.71,238.7,32.54]
[1757694186156,40.74,238.72,238.7,32.54]
[1757694186376,40.06,238.72,238.69,4.21952437]
[1757694186571,0.68,238.71,238.7,32.54]
[1757694186777,40.06,238.72,238.7,32.54]
[1757694187461,40.06,238.72,238.71,4.18918352]
[1757694187883,40.06,238.72,238.7,32.54]
[1757694188074,40.06,238.72,238.7,33.24]
[1757694188286,40.06,238.72,238.69,4.21936953]
[1757694188461,40.06,238.72,238.71,32.54]
[1757694189461,40.06,238.72,238.71,37.42918352]
[1757694190155,40.06,238.72,238.71,51.02477753]
[1757694191779,0.06,238.73,238.71,51.02477753]
[1757694192080,0.06,238.73,238.72,14.71449481]
[1757694192280,0.06,238.73,238.72,46.15559401]
[1757694192458,0.06,238.73,238.72,46.85559401]
[1757694193081,0.06,238.73,238.72,39.59559401]
[1757694193382,0.06,238.73,238.72,72.85559401]
[1757694193589,0.06,238.73,238.72,77.04460205]
[1757694194291,0.06,238.74,238.72,77.04460205]
[1757694194477,0.06,238.74,238.73,14.71447726]
[1757694195288,1e-08,238.74,238.73,14.71447726]
[1757694195794,1e-08,238.74,238.73,52.06330983]
[1757694196359,1e-08,238.74,238.73,50.92442658]
[1757694196766,1e-08,238.74,238.73,51.62442658]
[1757694197862,1e-08,238.74,238.73,50.92442658]
[1757694198589,1e-08,238.74,238.73,18.48442658]
[1757694198767,1e-08,238.74,238.73,50.92442658]
[1757694199378,1e-08,238.74,238.73,50.90442658]
[1757694199883,1e-08,238.74,238.73,51.60442658]
[1757694200279,1e-08,238.74,238.73,50.90442658]
[1757694200788,0.68000001,238.74,238.69,0.03]
[1757694200973,0.68000001,238.74,238.7,33.14]
[1757694201299,0.68,238.73,238.7,33.14]
[1757694201463,0.68,238.72,238.7,33.14]
[1757694201791,0.68,238.71,238.7,33.14]
[1757694202784,4.86927445,238.71,238.69,0.03]
[1757694204895,0.65,238.7,238.69,0.03]
[1757694206271,4.83935902,238.7,238.69,0.03]
[1757694207187,8.96078612,238.7,238.69,0.03]
[1757694208495,30.83935902,238.7,238.69,0.03]
[1757694208685,34.96078612,238.7,238.69,0.03]
[1757694208889,30.83935902,238.7,238.69,0.03]
[1757694209088,34.96078612,238.7,238.69,0.03]
[1757694211302,48.55638013,238.7,238.69,0.03]
[1757694211604,51.36730286,238.7,238.69,0.03]
[1757694212210,51.36730286,238.7,238.64,0.03]
[1757694212211,26.0,238.66,238.64,0.03]
[1757694212408,30.1214271,238.65,238.64,0.03]
[1757694212707,33.65115947,238.65,238.64,0.03]
[1757694213002,30.84023674,238.65,238.64,0.03]
[1757694213496,33.64819707,238.65,238.64,0.03]
[1757694213696,47.24379108,238.65,238.64,0.03]
[1757694213891,51.36521818,238.65,238.64,0.03]
[1757694215212,26.0,238.61,238.59,0.03]
[1757694215385,26.0,238.57,238.54,0.03]
[1757694215585,43.71702111,238.57,238.54,0.03]
[1757694215903,4.7714271,238.57,238.54,0.03]
[1757694216816,8.96306896,238.57,238.54,0.03]
[1757694217013,30.84164186,238.57,238.54,0.03]
[1757694217186,64.08164186,238.57,238.54,0.03]
[1757694217386,68.20306896,238.57,238.54,0.03]
[1757694217604,34.96306896,238.57,238.54,0.03]
[1757694218890,68.24306896,238.57,238.54,0.03]
[1757694220611,68.24306896,238.57,238.56,79.63]
[1757694220612,34.96306896,238.57,238.56,79.63]
[1757694220801,68.24306896,238.57,238.56,79.63]
[1757694221294,64.12164186,238.57,238.56,79.63]
[1757694221609,68.24306896,238.57,238.56,79.63]
[1757694222033,34.31306896,238.57,238.56,79.63]
[1757694222311,10.47830286,238.59,238.56,79.63]
[1757694222312,8.31279182,238.59,238.56,0.03]
[1757694223001,8.31279182,238.59,238.56,0.68]
[1757694223609,8.31279182,238.59,238.56,0.03]
[1757694224321,4.19136472,238.59,238.56,0.03]
[1757694224810,4.19136472,238.59,238.57,0.65]
[1757694225521,37.12708825,238.62,238.58,0.65]
[1757694225522,26.0,238.62,238.58,0.65]
[1757694225812,8.31215293,238.63,238.59,0.69]
[1757694226016,4.1214271,238.62,238.57,0.69]
[1757694226205,4.19093918,238.61,238.56,0.03]
[1757694226408,4.19093918,238.61,238.57,0.69]
[1757694226611,4.19093918,238.61,238.58,0.69]
[1757694228418,4.19093918,238.61,238.56,0.72]
[1757694228599,8.31236628,238.61,238.57,0.69]
[1757694229302,8.31236628,238.61,238.56,0.03]
[1757694229303,0.7,238.6,238.56,0.03]
[1757694229505,4.1214271,238.59,238.56,0.03]
[1757694229820,37.43093918,238.61,238.56,0.72]
[1757694230118,37.43093918,238.61,238.57,0.69]
[1757694230318,4.1214271,238.6,238.56,0.03]
[1757694230518,4.1214271,238.6,238.56,0.72]
[1757694231219,4.8214271,238.6,238.56,0.03]
[1757694231433,4.1214271,238.6,238.56,0.72]
[1757694231601,4.19113325,238.6,238.56,0.72]
[1757694231804,4.19113325,238.6,238.56,0.03]
[1757694232008,4.1214271,238.61,238.56,0.72]
[1757694232217,67.63234874,238.62,238.57,0.69]
[1757694232530,67.63234874,238.62,238.58,0.69]
[1757694232701,4.19092164,238.62,238.58,0.69]
[1757694233007,4.19092164,238.62,238.57,0.03]
[1757694233212,4.1214271,238.61,238.58,0.69]
[1757694233710,8.3125007,238.61,238.58,0.69]
[1757694234910,8.3125007,238.61,238.57,0.03]
[1757694235115,4.1214271,238.59,238.57,0.73]
[1757694235425,4.1214271,238.59,238.57,0.03]
[1757694235721,8.31277287,238.59,238.57,0.03]
[1757694236113,0.71,238.58,238.57,0.03]
[1757694236516,8.31277287,238.59,238.57,0.03]
[1757694237118,9.02277287,238.59,238.57,0.03]
[1757694239530,8.31277287,238.59,238.57,0.03]
[1757694239708,9.02277287,238.59,238.57,0.03]
[1757694242656,4.19134577,238.59,238.57,0.03]
[1757694242840,4.8314271,238.58,238.57,0.03]
[1757694243418,8.9528542,238.58,238.57,0.03]
[1757694243625,13.14432037,238.58,238.57,0.03]
[1757694243823,13.14432037,238.58,238.56,0.03]
[1757694244036,33.24,238.57,238.56,0.03]
[1757694244445,33.95,238.57,238.56,0.03]
[1757694245245,36.75419415,238.57,238.56,0.03]
[1757694245763,49.18869021,238.57,238.56,0.03]
[1757694246124,49.16869021,238.57,238.56,0.03]
[1757694246932,45.04726311,238.57,238.56,0.03]
[1757694247251,6.99583601,238.57,238.56,0.03]
[1757694247554,4.1214271,238.57,238.56,0.73]
[1757694247854,8.31271759,238.59,238.56,0.73]
[1757694248353,4.19129049,238.59,238.56,0.73]
[1757694248730,4.19129049,238.59,238.57,0.7]
[1757694250941,7.08613333,238.67,238.58,0.7]
[1757694251261,4.1214271,238.64,238.58,0.7]
[1757694251463,2.80985615,238.66,238.58,0.7]
[1757694251757,4.1214271,238.63,238.58,0.7]
[1757694252051,4.1214271,238.61,238.56,0.73]
[1757694252250,0.71,238.62,238.56,0.73]
[1757694252251,4.1214271,238.6,238.57,0.7]
[1757694252470,4.1214271,238.61,238.57,0.7]
[1757694252838,7.70128325,238.62,238.57,0.7]
[1757694253233,8.31236628,238.61,238.57,0.7]
[1757694253835,4.1214271,238.58,238.56,0.03]
[1757694254035,4.1214271,238.57,238.56,0.03]
[1757694254561,2.643643,238.59,238.56,0.03]
[1757694254734,2.643643,238.59,238.56,0.73]
[1757694254934,2.643643,238.59,238.56,0.03]
[1757694255180,6.83510917,238.58,238.56,0.03]
[1757694255362,2.643643,238.57,238.56,0.03]
[1757694256241,4.90146617,238.58,238.56,0.03]
[1757694256444,4.19146617,238.58,238.56,0.03]
[1757694256644,2.643643,238.57,238.56,0.03]
[1757694256847,4.19146617,238.58,238.56,0.03]
[1757694257152,4.19146617,238.58,238.56,0.73]
[1757694257357,4.19146617,238.58,238.56,0.03]
[1757694257542,6.83487695,238.6,238.57,0.7]
[1757694257870,6.83487695,238.6,238.56,0.03]
[1757694257871,4.19123395,238.6,238.56,0.03]
[1757694258034,2.86985615,238.62,238.58,0.7]
[1757694258234,0.06,238.62,238.59,0.7]
[1757694258467,0.06,238.62,238.6,0.7]
[1757694258669,4.25080764,238.62,238.57,0.7]
[1757694258848,4.25080764,238.62,238.58,0.7]
[1757694259052,0.06,238.62,238.59,0.7]
[1757694259251,0.06,238.62,238.56,4.22181214]
[1757694259252,0.06,238.62,238.6,0.7]
[1757694259942,4.25078126,238.62,238.58,0.7]
[1757694260150,4.25078126,238.62,238.59,0.7]
[1757694260745,4.25078126,238.62,238.57,0.7]
[1757694260961,3.353643,238.61,238.56,0.03]
[1757694261259,5.51349915,238.62,238.56,0.03]
[1757694261454,2.703643,238.62,238.57,0.7]
[1757694261654,6.89440814,238.62,238.57,0.7]
[1757694261974,6.89440814,238.62,238.56,0.03]
[1757694261975,6.89440814,238.62,238.58,0.7]
[1757694262176,7.60440814,238.62,238.56,0.03]
[1757694262379,9.70426429,238.62,238.56,0.03]
[1757694262568,2.643643,238.59,238.56,0.03]
[1757694263071,3.353643,238.58,238.56,0.03]
[1757694263371,4.19146617,238.58,238.56,0.73]
[1757694263747,4.19146617,238.58,238.56,0.03]
[1757694264642,9.64477608,238.6,238.56,0.69]
[1757694264844,4.19127693,238.6,238.56,0.69]
[1757694265040,2.80985615,238.61,238.57,0.66]
[1757694265256,2.80985615,238.61,238.58,0.66]
[1757694265463,0.06,238.62,238.58,0.66]
[1757694265657,0.06,238.62,238.56,0.03]
[1757694265658,0.06,238.62,238.59,0.66]
[1757694266847,0.06,238.62,238.59,4.8512229]
[1757694267051,0.06,238.62,238.6,0.66]
[1757694268545,0.06,238.62,238.61,4.19093918]
[1757694268964,0.06,238.62,238.61,4.85093918]
[1757694270876,0.06,238.62,238.61,0.66]
[1757694272445,0.06,238.62,238.6,30.19105515]
[1757694272643,0.06,238.62,238.6,30.85105515]
[1757694273063,0.06,238.62,238.61,0.66]
[1757694273563,0.06,238.62,238.6,4.19105515]
[1757694273764,0.06,238.62,238.61,0.66]
[1757694274074,4.18988862,238.67,238.65,79.48]
[1757694274278,0.67,238.66,238.65,79.48]
[1757694275485,10.53354102,238.7,238.65,79.48]
[1757694275486,0.67,238.69,238.65,79.48]
[1757694276178,0.67,238.68,238.65,79.48]
[1757694276551,0.06,238.7,238.65,83.67021188]
[1757694276758,0.06,238.7,238.66,0.66]
[1757694277154,0.73,238.7,238.65,79.48]
[1757694277345,0.73,238.7,238.66,0.66]
[1757694277550,0.06,238.7,238.66,0.66]
[1757694277852,0.67,238.69,238.65,79.48]
[1757694279976,4.85956134,238.69,238.65,80.14]
[1757694280446,4.18956134,238.69,238.65,80.14]
[1757694282079,4.24937572,238.7,238.66,0.66]
[1757694282454,0.06,238.7,238.67,0.66]
[1757694282659,0.06,238.7,238.68,0.66]
[1757694282862,3.54222544,238.73,238.71,79.42]
[1757694283462,4.18902982,238.72,238.71,79.42]
[1757694284982,0.06,238.73,238.71,79.42]
[1757694285163,4.24885373,238.73,238.71,79.42]
[1757694285562,4.24885373,238.73,238.68,0.66]
[1757694285765,4.94885373,238.73,238.68,33.72]
[1757694286076,4.24885373,238.73,238.69,0.67]
[1757694286580,4.94885373,238.73,238.68,33.04]
[1757694286791,0.06,238.73,238.69,0.67]
[1757694286970,0.06,238.73,238.7,33.04]
[1757694287166,0.06,238.73,238.71,0.67]
[1757694288075,0.06,238.73,238.72,0.67]
[1757694288455,0.06,238.73,238.72,33.69]
[1757694288658,0.06,238.73,238.72,37.87900804]
[1757694289662,0.06,238.73,238.72,4.85900804]
[1757694289860,0.06,238.73,238.72,37.85900804]
[1757694290465,0.06,238.73,238.72,0.67]
[1757694290667,0.06,238.73,238.72,37.85900804]
[1757694291265,0.06,238.73,238.72,33.67]
[1757694292967,0.06,238.73,238.72,0.67]
[1757694293172,0.06,238.73,238.72,33.65]
[1757694293890,0.06,238.73,238.72,32.96]
[1757694294078,4.18865712,238.74,238.73,79.36]
[1757694294983,4.84865712,238.74,238.73,79.36]
[1757694295184,7.49230012,238.74,238.73,79.36]
[1757694295374,4.84865712,238.74,238.73,79.36]
[1757694297073,7.49230012,238.74,238.73,79.36]
[1757694299673,4.84865712,238.74,238.73,79.36]
[1757694299873,7.49230012,238.74,238.73,79.36]
[1757694303773,21.08789413,238.74,238.73,53.68369157]
[1757694304073,6.83230012,238.74,238.73,28.92400961]
[1757694304396,4.18865712,238.74,238.73,28.92400961]
[1757694306391,1e-08,238.74,238.73,29.62400961]
[1757694306784,1e-08,238.74,238.73,28.92400961]
[1757694306991,3.30364301,238.74,238.73,28.92400961]
[1757694307576,7.49230012,238.74,238.73,28.92400961]
[1757694308591,7.49230012,238.74,238.73,28.95400961]